bitfinex-derivatives/quotes_BTCF0:USTF0_20241020
["timestamp","ask_amount","ask_price","bid_price","bid_amount"]
[1729454109905,0.11606704,68561.0,68560.0,0.072938]
[1729454111807,0.11606704,68561.0,68560.0,0.25504162]
[1729454111808,0.072938,68561.0,68560.0,0.25504162]
[1729454112711,0.072938,68561.0,68560.0,0.16747838]
[1729454114113,0.072938,68561.0,68560.0,0.16741115]
[1729454119734,0.072938,68561.0,68560.0,0.072938]
[1729454122036,0.11608507,68561.0,68560.0,0.072938]
[1729454123736,0.04314707,68561.0,68560.0,0.072938]
[1729454126743,0.434578,68562.0,68560.0,0.3093104]
[1729454126940,0.433738,68562.0,68561.0,0.28014765]
[1729454129336,0.433738,68562.0,68561.0,0.51309667]
[1729454132840,0.433738,68562.0,68561.0,0.28014765]
[1729454133343,0.433738,68562.0,68561.0,0.28022813]
[1729454134740,0.433738,68562.0,68561.0,0.16750632]
[1729454138251,0.433738,68562.0,68561.0,0.16748192]
[1729454141739,0.433738,68562.0,68561.0,0.072938]
[1729454149755,0.433738,68562.0,68561.0,0.17093141]
[1729454150461,0.072938,68562.0,68561.0,0.17093141]
[1729454155167,0.072938,68562.0,68561.0,0.25850625]
[1729454156469,0.072938,68562.0,68561.0,0.17093141]
[1729454156773,0.072938,68562.0,68561.0,0.25850611]
[1729454157567,0.072938,68562.0,68561.0,0.25850552]
[1729454158666,0.072938,68562.0,68561.0,0.17093141]
[1729454158870,0.072938,68562.0,68561.0,0.25850498]
[1729454159071,0.072938,68562.0,68561.0,0.17093141]
[1729454159266,0.072938,68562.0,68561.0,0.25850319]
[1729454161071,0.072938,68562.0,68561.0,0.25852404]
[1729454163270,0.072938,68562.0,68561.0,0.17095226]
[1729454164879,0.072938,68562.0,68561.0,0.072938]
[1729454171995,0.072938,68562.0,68561.0,0.17071458]
[1729454175297,0.072938,68562.0,68561.0,0.17070352]
[1729454179787,0.072938,68562.0,68561.0,0.072938]
[1729454182197,0.033,68565.0,68547.0,0.04597582]
[1729454182198,0.072949,68551.0,68547.0,0.04597582]
[1729454182387,0.072952,68548.0,68547.0,0.00218814]
[1729454183394,0.072952,68548.0,68547.0,0.00318814]
[1729454184706,0.073952,68548.0,68547.0,0.00418814]
[1729454184894,0.074952,68548.0,68547.0,0.00418814]
[1729454186890,0.074952,68548.0,68547.0,0.10218126]
[1729454187397,0.074952,68548.0,68547.0,0.17513426]
[1729454189503,0.074952,68548.0,68547.0,0.17518804]
[1729454191511,0.074952,68548.0,68547.0,0.26254084]
[1729454191695,0.074952,68548.0,68547.0,0.26254034]
[1729454192100,0.074952,68548.0,68547.0,0.17518804]
[1729454192304,0.074952,68548.0,68547.0,0.26254038]
[1729454193010,0.074952,68548.0,68547.0,0.17518804]
[1729454193200,0.074952,68548.0,68547.0,0.26254038]
[1729454194005,0.074952,68548.0,68547.0,0.17518804]
[1729454194211,0.074952,68548.0,68547.0,0.17512968]
[1729454195107,0.074952,68548.0,68547.0,0.07714114]
[1729454201915,0.074952,68548.0,68547.0,0.17514228]
[1729454202812,0.074952,68548.0,68547.0,0.26250203]
[1729454203206,0.074952,68548.0,68547.0,0.17514228]
[1729454203517,0.074952,68548.0,68547.0,0.26250203]
[1729454206313,0.074952,68548.0,68547.0,0.17514228]
[1729454208622,0.074952,68548.0,68547.0,0.17517449]
[1729454209220,0.074952,68548.0,68547.0,0.29200873]
[1729454210029,0.074952,68548.0,68547.0,0.07714114]
[1729454217024,0.074952,68548.0,68547.0,0.17531217]
[1729454218428,0.074952,68548.0,68547.0,0.17530309]
[1729454222227,0.074952,68548.0,68547.0,0.26276872]
[1729454223115,0.074952,68548.0,68547.0,0.17530309]
[1729454231535,0.074952,68548.0,68547.0,0.17530751]
[1729454232133,0.074952,68548.0,68547.0,0.07714114]
[1729454240145,0.074952,68548.0,68547.0,0.17531328]
[1729454245143,0.074952,68548.0,68547.0,0.26290844]
[1729454245536,0.074952,68548.0,68547.0,0.26290376]
[1729454245946,0.074952,68548.0,68547.0,0.17535422]
[1729454250849,0.074952,68548.0,68547.0,0.07714114]
[1729454251038,0.074952,68548.0,68547.0,0.1753829]
[1729454254549,0.074952,68548.0,68547.0,0.26297338]
[1729454254845,0.002,68548.0,68547.0,0.2629707]
[1729454255046,0.002,68548.0,68547.0,0.07714114]
[1729454261456,0.074952,68548.0,68547.0,0.07714114]
[1729454262057,0.074952,68548.0,68547.0,0.2629186]
[1729454264560,0.074952,68548.0,68547.0,0.17533082]
[1729454265454,0.074952,68548.0,68547.0,0.2629186]
[1729454269464,0.074952,68548.0,68547.0,0.17533082]
[1729454270150,0.074952,68548.0,68547.0,0.07714114]
[1729454276666,0.435752,68548.0,68547.0,0.07714114]
[1729454277059,0.435752,68548.0,68547.0,0.17540919]
[1729454277973,0.074952,68548.0,68547.0,0.17540919]
[1729454279973,0.074952,68548.0,68547.0,0.1753975]
[1729454281862,0.074952,68548.0,68547.0,0.26298528]
[1729454282371,0.074952,68548.0,68547.0,0.1753975]
[1729454283070,0.074952,68548.0,68547.0,0.26298528]
[1729454283271,0.074952,68548.0,68547.0,0.1753975]
[1729454283778,0.074952,68548.0,68547.0,0.26298528]
[1729454284970,0.074952,68548.0,68547.0,0.1753975]
[1729454285271,0.074952,68548.0,68547.0,0.07714114]
[1729454292181,0.074952,68548.0,68547.0,0.17532273]
[1729454294588,0.074952,68548.0,68547.0,0.17313459]
[1729454294787,0.074952,68548.0,68547.0,0.26072237]
[1729454295784,0.074952,68548.0,68547.0,0.17313459]
[1729454298490,0.074952,68548.0,68547.0,0.26072237]
[1729454300087,0.074952,68548.0,68547.0,0.17313459]
[1729454300291,0.074952,68548.0,68547.0,0.074953]
[1729454307296,0.074952,68548.0,68547.0,0.26074271]
[1729454310002,0.074952,68548.0,68547.0,0.17315493]
[1729454311503,0.074952,68548.0,68547.0,0.26074271]
[1729454314407,0.074952,68548.0,68547.0,0.17315493]
[1729454322312,0.074952,68548.0,68547.0,0.074953]
[1729454329315,0.074952,68548.0,68547.0,0.17314861]
[1729454330817,0.074952,68548.0,68547.0,0.10019561]
[1729454332122,0.074952,68548.0,68547.0,0.10025542]
[1729454336817,0.074952,68548.0,68547.0,0.10025216]
[1729454341623,0.074952,68548.0,68547.0,0.10024015]
[1729454344423,0.074952,68548.0,68547.0,0.002]
[1729454352432,0.074952,68548.0,68547.0,0.100285]
[1729454354935,0.074952,68548.0,68547.0,0.002]
[1729454355931,0.074952,68548.0,68547.0,0.10028446]
[1729454359324,0.074952,68548.0,68547.0,0.002]
[1729454367432,0.074952,68548.0,68547.0,0.10020715]
[1729454368338,0.074952,68548.0,68547.0,0.18780276]
[1729454372737,0.074952,68548.0,68547.0,0.10020715]
[1729454374432,0.074952,68548.0,68547.0,0.002]
[1729454382447,0.074952,68548.0,68547.0,0.10023387]
[1729454385050,0.074952,68548.0,68547.0,0.10023373]
[1729454385447,0.074952,68548.0,68547.0,0.18782934]
[1729454388755,0.074952,68548.0,68547.0,0.10023373]
[1729454396460,0.074952,68548.0,68547.0,0.18782934]
[1729454397053,0.074952,68548.0,68547.0,0.10023373]
[1729454397564,0.074952,68548.0,68547.0,0.002]
[1729454404462,0.074952,68548.0,68547.0,0.10023968]
[1729454405771,0.074952,68548.0,68547.0,0.26078829]
[1729454407668,0.074952,68548.0,68547.0,0.2607876]
[1729454407867,0.074952,68548.0,68547.0,0.26087672]
[1729454412570,0.074952,68548.0,68547.0,0.074953]
[1729454418578,0.002,68548.0,68547.0,0.074953]
[1729454419774,0.002,68548.0,68547.0,0.17323229]
[1729454420374,0.074952,68548.0,68547.0,0.17323229]
[1729454422173,0.074952,68548.0,68547.0,0.17323994]
[1729454426270,0.074952,68548.0,68547.0,0.26082519]
[1729454427386,0.074952,68548.0,68547.0,0.17323994]
[1729454427683,0.074952,68548.0,68547.0,0.074953]
[1729454427882,0.074952,68548.0,68547.0,0.002]
[1729454428777,0.435752,68548.0,68547.0,0.002]
[1729454432185,0.46153848,68548.0,68547.0,0.002]
[1729454440308,0.46153848,68548.0,68547.0,0.06029985]
[1729454440601,0.46153848,68548.0,68547.0,0.002]
[1729454451113,0.46153848,68548.0,68547.0,0.0457309]
[1729454451410,0.46153848,68548.0,68547.0,0.002]
[1729454457310,0.46153848,68548.0,68547.0,0.06029403]
[1729454458416,0.46153848,68548.0,68547.0,0.002]
[1729454459317,0.46153848,68548.0,68541.0,0.07298736]
[1729454459318,0.072954,68546.0,68541.0,0.07298736]
[1729454459514,0.072962,68539.0,68538.0,0.07298736]
[1729454459711,0.072963,68538.0,68537.0,0.07298736]
[1729454459915,0.072964,68537.0,68536.0,0.07298736]
[1729454460117,0.072964,68537.0,68535.0,0.07299985]
[1729454460320,0.433765,68536.0,68535.0,0.07299985]
[1729454461326,0.434765,68536.0,68535.0,0.07399985]
[1729454461521,0.434765,68536.0,68535.0,0.001]
[1729454462823,0.435765,68536.0,68535.0,0.001]
[1729454472837,0.435765,68536.0,68535.0,0.09939643]
[1729454474262,0.074965,68536.0,68535.0,0.09939643]
[1729454474534,0.435765,68536.0,68535.0,0.09939643]
[1729454474734,0.435765,68536.0,68535.0,0.18698109]
[1729454474735,0.074965,68536.0,68535.0,0.18698109]
[1729454474930,0.074965,68536.0,68535.0,0.09939643]
[1729454475427,0.074965,68536.0,68535.0,0.2165163]
[1729454475633,0.074965,68536.0,68535.0,0.09939643]
[1729454479136,0.435765,68536.0,68535.0,0.18687623]
[1729454479734,0.435765,68536.0,68535.0,0.0884798]
[1729454479933,0.435765,68536.0,68535.0,0.001]
[1729454485631,0.072967,68534.0,68533.0,0.0326]
[1729454486445,0.072967,68534.0,68533.0,0.10550258]
[1729454486631,0.073967,68534.0,68533.0,0.10550258]
[1729454486835,0.073967,68534.0,68533.0,0.10650258]
[1729454486836,0.074967,68534.0,68533.0,0.10650258]
[1729454487445,0.074967,68534.0,68533.0,0.20508381]
[1729454487847,0.1124667,68534.0,68533.0,0.0336]
[1729454488640,0.1124667,68534.0,68533.0,0.001]
[1729454490040,0.4732667,68534.0,68533.0,0.001]
[1729454490431,0.49928986,68534.0,68533.0,0.001]
[1729454490847,0.46179016,68534.0,68533.0,0.001]
[1729454491237,0.10099016,68534.0,68533.0,0.001]
[1729454491438,0.46179016,68534.0,68533.0,0.001]
[1729454491839,0.10099016,68534.0,68533.0,0.001]
[1729454492048,0.46179016,68534.0,68533.0,0.001]
[1729454494951,0.46179016,68534.0,68533.0,0.09959207]
[1729454496343,0.46179016,68534.0,68533.0,0.18707187]
[1729454496541,0.46179016,68534.0,68533.0,0.09959207]
[1729454497846,0.435767,68534.0,68533.0,0.09959207]
[1729454501849,0.435767,68534.0,68533.0,0.09966383]
[1729454502952,0.435767,68534.0,68533.0,0.001]
[1729454503252,0.074967,68534.0,68533.0,0.001]
[1729454508252,0.11216763,68534.0,68533.0,0.001]
[1729454510062,0.074967,68534.0,68533.0,0.09982961]
[1729454511158,0.074967,68534.0,68533.0,0.09969399]
[1729454516163,0.074967,68534.0,68533.0,0.09977265]
[1729454517963,0.11228217,68534.0,68533.0,0.001]
[1729454522072,0.11223512,68534.0,68533.0,0.001]
[1729454525062,0.074967,68534.0,68533.0,0.09978352]
[1729454525966,0.074967,68534.0,68533.0,0.18738831]
[1729454528968,0.074967,68534.0,68533.0,0.09978352]
[1729454533069,0.074967,68534.0,68533.0,0.001]
[1729454540073,0.074967,68534.0,68533.0,0.21732866]
[1729454543384,0.074967,68534.0,68533.0,0.21729763]
[1729454547088,0.074967,68534.0,68533.0,0.09967765]
[1729454553193,0.074967,68534.0,68533.0,0.09965596]
[1729454555082,0.11236905,68534.0,68533.0,0.001]
[1729454557281,0.074967,68534.0,68533.0,0.001]
[1729454557486,0.11238867,68534.0,68533.0,0.001]
[1729454557989,0.15718421,68534.0,68533.0,0.001]
[1729454560394,0.51798421,68534.0,68533.0,0.001]
[1729454562192,0.435767,68534.0,68533.0,0.001]
[1729454563492,0.435767,68534.0,68533.0,0.05939228]
[1729454565601,0.435767,68534.0,68533.0,0.001]
[1729454577105,0.51764237,68534.0,68533.0,0.001]
[1729454578201,0.47284316,68534.0,68533.0,0.001]
[1729454585313,0.435767,68534.0,68533.0,0.001]
[1729454585513,0.796567,68534.0,68533.0,0.001]
[1729454586608,0.796567,68534.0,68533.0,0.04476429]
[1729454587317,0.796567,68534.0,68533.0,0.001]
[1729454591911,0.072971,68530.0,68526.0,0.05839228]
[1729454592213,0.072971,68530.0,68524.0,0.0314]
[1729454592214,0.072977,68525.0,68524.0,0.0314]
[1729454594020,0.073977,68525.0,68524.0,0.0314]
[1729454594517,0.074977,68525.0,68524.0,0.0314]
[1729454596105,0.11208171,68525.0,68524.0,0.0314]
[1729454598719,0.15688412,68525.0,68524.0,0.0314]
[1729454598919,0.11208171,68525.0,68524.0,0.0314]
[1729454600217,0.074977,68525.0,68524.0,0.0314]
[1729454600917,0.1014279,68525.0,68524.0,0.0314]
[1729454603022,0.072978,68524.0,68523.0,0.07302076]
[1729454603520,0.0284509,68525.0,68522.0,0.07302076]
[1729454603710,0.072979,68523.0,68522.0,0.07302076]
[1729454603914,0.072979,68523.0,68522.0,0.17196101]
[1729454604826,0.073979,68523.0,68522.0,0.17196101]
[1729454605722,0.073979,68523.0,68522.0,0.09894025]
[1729454605920,0.073979,68523.0,68522.0,0.17193171]
[1729454606324,0.073979,68523.0,68522.0,0.09894025]
[1729454606518,0.074979,68523.0,68522.0,0.09894025]
[1729454606717,0.074979,68523.0,68522.0,0.17193377]
[1729454606918,0.074979,68523.0,68522.0,0.09894025]
[1729454607320,0.072987,68515.0,68514.0,0.072987]
[1729454608723,0.072987,68515.0,68514.0,0.09918285]
[1729454609017,0.074987,68515.0,68514.0,0.09918285]
[1729454612630,0.074987,68515.0,68514.0,0.45998285]
[1729454614329,0.074987,68515.0,68514.0,0.09918285]
[1729454615328,0.074987,68515.0,68514.0,0.19821362]
[1729454619136,0.074987,68515.0,68514.0,0.19822245]
[1729454621237,0.074987,68515.0,68514.0,0.28584712]
[1729454621536,0.074987,68515.0,68514.0,0.28585166]
[1729454621738,0.074987,68515.0,68514.0,0.19822245]
[1729454622426,0.074987,68515.0,68514.0,0.09918285]
[1729454630447,0.074987,68515.0,68514.0,0.31651031]
[1729454641848,0.074987,68515.0,68514.0,0.09918285]
[1729454642055,0.074987,68515.0,68514.0,0.31657471]
[1729454642555,0.074987,68515.0,68514.0,0.31653679]
[1729454645457,0.074987,68515.0,68514.0,0.09918285]
[1729454651950,0.002,68515.0,68514.0,0.09918285]
[1729454652563,0.002,68515.0,68514.0,0.31652017]
[1729454661369,0.002,68515.0,68514.0,0.31648241]
[1729454666361,0.002,68515.0,68514.0,0.31663326]
[1729454667669,0.002,68515.0,68514.0,0.09918285]
[1729454669170,0.074987,68515.0,68514.0,0.09918285]
[1729454675576,0.074987,68515.0,68514.0,0.19836487]
[1729454676176,0.074987,68515.0,68514.0,0.19838506]
[1729454677077,0.0967,68524.0,68518.0,0.072984]
[1729454677280,0.07298,68522.0,68521.0,0.07302306]
[1729454677480,0.07298,68522.0,68521.0,0.17222527]
[1729454677665,0.07298,68522.0,68521.0,0.09920221]
[1729454678570,0.07398,68522.0,68521.0,0.09920221]
[1729454679275,0.07498,68522.0,68521.0,0.10020221]
[1729454682577,0.11170558,68522.0,68521.0,0.001]
[1729454685778,0.11170126,68522.0,68521.0,0.001]
[1729454690586,0.1116902,68522.0,68521.0,0.001]
[1729454690788,0.07498,68522.0,68521.0,0.10022184]
[1729454693407,0.07498,68522.0,68521.0,0.17324091]
[1729454693815,0.07498,68522.0,68521.0,0.10022184]
[1729454694308,0.07498,68522.0,68521.0,0.17324018]
[1729454695906,0.07498,68522.0,68521.0,0.10022184]
[1729454696106,0.07498,68522.0,68521.0,0.17323941]
[1729454696298,0.07498,68522.0,68521.0,0.07401757]
[1729454696498,0.07498,68522.0,68521.0,0.17330984]
[1729454697003,0.07498,68522.0,68521.0,0.17331712]
[1729454697201,0.07498,68522.0,68521.0,0.07401757]
[1729454697398,0.07498,68522.0,68521.0,0.17330123]
[1729454697799,0.11160591,68522.0,68521.0,0.001]
[1729454700103,0.11161357,68522.0,68521.0,0.001]
[1729454702607,0.11156446,68522.0,68521.0,0.001]
[1729454703609,0.11161093,68522.0,68521.0,0.001]
[1729454704720,0.07498,68522.0,68521.0,0.10029244]
[1729454704922,0.07498,68522.0,68521.0,0.17331677]
[1729454705112,0.07498,68522.0,68521.0,0.10029244]
[1729454708423,0.07498,68522.0,68521.0,0.10027557]
[1729454711633,0.07498,68522.0,68521.0,0.17330042]
[1729454711934,0.07498,68522.0,68521.0,0.10027557]
[1729454714640,0.07498,68522.0,68521.0,0.17330005]
[1729454714829,0.07498,68522.0,68521.0,0.1733014]
[1729454715134,0.07498,68522.0,68521.0,0.10027557]
[1729454718033,0.07498,68522.0,68521.0,0.10018757]
[1729454719720,0.07498,68522.0,68521.0,0.001]
[1729454719926,0.11173792,68522.0,68521.0,0.001]
[1729454722836,0.11175841,68522.0,68521.0,0.001]
[1729454727737,0.11174849,68522.0,68521.0,0.001]
[1729454727944,0.07498,68522.0,68521.0,0.10021999]
[1729454732444,0.07498,68522.0,68521.0,0.10021761]
[1729454733731,0.07498,68522.0,68521.0,0.17324833]
[1729454734851,0.43578,68522.0,68521.0,0.001]
[1729454735231,0.07498,68522.0,68521.0,0.001]
[1729454735435,0.43578,68522.0,68521.0,0.001]
[1729454735650,0.07498,68522.0,68521.0,0.001]
[1729454736144,0.43578,68522.0,68521.0,0.001]
[1729454737548,0.07498,68522.0,68521.0,0.001]
[1729454742848,0.07498,68522.0,68521.0,0.1731926]
[1729454743047,0.07498,68522.0,68521.0,0.07403072]
[1729454746640,0.07498,68522.0,68521.0,0.17319178]
[1729454748158,0.07498,68522.0,68521.0,0.10016106]
[1729454749854,0.07498,68522.0,68521.0,0.001]
[1729454758055,0.15659904,68522.0,68521.0,0.001]
[1729454760862,0.15658754,68522.0,68521.0,0.001]
[1729454762855,0.15658641,68522.0,68521.0,0.001]
[1729454763549,0.11178519,68522.0,68521.0,0.001]
[1729454764962,0.07498,68522.0,68521.0,0.10018812]
[1729454768161,0.07498,68522.0,68521.0,0.10118812]
[1729454769562,0.07498,68522.0,68521.0,0.10108499]
[1729454772959,0.11192696,68522.0,68521.0,0.002]
[1729454776567,0.07498,68522.0,68521.0,0.002]
[1729454779863,0.07498,68522.0,68521.0,0.17413321]
[1729454784075,0.07498,68522.0,68521.0,0.0750326]
[1729454785077,0.07498,68522.0,68521.0,0.002]
[1729454786865,0.07498,68522.0,68521.0,0.001]
[1729454787063,0.07498,68522.0,68521.0,0.002]
[1729454792176,0.1566039,68522.0,68521.0,0.002]
[1729454794980,0.07498,68522.0,68521.0,0.17417702]
[1729454798483,0.07498,68522.0,68521.0,0.17416588]
[1729454800094,0.07498,68522.0,68521.0,0.0750326]
[1729454801377,0.07498,68522.0,68521.0,0.17417607]
[1729454802387,0.07498,68522.0,68521.0,0.17416501]
[1729454802589,0.07498,68522.0,68521.0,0.17416828]
[1729454803091,0.07498,68522.0,68521.0,0.0604184]
[1729454807482,0.07498,68522.0,68521.0,0.002]
[1729454810084,0.11179955,68522.0,68521.0,0.002]
[1729454813290,0.1566031,68522.0,68521.0,0.002]
[1729454814496,0.03883609,68522.0,68504.0,0.0303]
[1729454814704,0.072997,68506.0,68500.0,0.0008]
[1729454814997,0.10983309,68506.0,68499.0,0.0317]
[1729454815296,0.10983309,68506.0,68501.0,0.073002]
[1729454815687,0.10983309,68506.0,68505.0,0.00318953]
[1729454816195,0.10983309,68506.0,68505.0,0.002]
[1729454816196,0.11083309,68506.0,68505.0,0.002]
[1729454816792,0.11083309,68506.0,68505.0,0.001]
[1729454817091,0.11183309,68506.0,68505.0,0.002]
[1729454817289,0.11093917,68506.0,68505.0,0.002]
[1729454818089,0.074997,68506.0,68505.0,0.002]
[1729454818495,0.074997,68506.0,68505.0,0.0602943]
[1729454819597,0.074997,68506.0,68505.0,0.002]
[1729454820198,0.074997,68506.0,68505.0,0.0602943]
[1729454820397,0.074997,68506.0,68505.0,0.002]
[1729454822099,0.435797,68506.0,68505.0,0.002]
[1729454828103,0.074997,68506.0,68505.0,0.002]
[1729454828408,0.435797,68506.0,68505.0,0.002]
[1729454828898,0.074997,68506.0,68505.0,0.002]
[1729454829099,0.435797,68506.0,68505.0,0.002]
[1729454829497,0.435797,68506.0,68505.0,0.074998]
[1729454830402,0.002,68506.0,68505.0,0.074998]
[1729454832398,0.074997,68506.0,68505.0,0.074998]
[1729454833202,0.074997,68506.0,68505.0,0.17431733]
[1729454834504,0.074997,68506.0,68505.0,0.20047238]
[1729454834905,0.074997,68506.0,68505.0,0.10115305]
[1729454835210,0.074997,68506.0,68505.0,0.12749918]
[1729454839406,0.074997,68506.0,68505.0,0.21512685]
[1729454839601,0.074997,68506.0,68505.0,0.12749918]
[1729454839909,0.074997,68506.0,68505.0,0.21512685]
[1729454840208,0.074997,68506.0,68505.0,0.02815505]
[1729454840604,0.074997,68506.0,68505.0,0.10115305]
[1729454840605,0.002,68506.0,68505.0,0.10115305]
[1729454840805,0.71223279,68514.0,68507.0,0.072995]
[1729454841012,0.78522079,68514.0,68513.0,0.04373287]
[1729454841211,0.78610079,68514.0,68513.0,0.04373287]
[1729454841406,0.78522079,68514.0,68513.0,0.04373287]
[1729454841610,0.78522079,68514.0,68513.0,0.05831001]
[1729454842498,0.78722079,68514.0,68513.0,0.05831001]
[1729454842700,0.78722079,68514.0,68509.0,0.07288812]
[1729454842701,0.072992,68510.0,68509.0,0.07288812]
[1729454843600,0.072992,68510.0,68509.0,0.17225631]
[1729454844310,0.073992,68510.0,68509.0,0.17329767]
[1729454844509,0.073992,68510.0,68509.0,0.10040481]
[1729454845111,0.074992,68510.0,68509.0,0.17439881]
[1729454845314,0.074992,68510.0,68509.0,0.10140481]
[1729454848316,0.074992,68510.0,68509.0,0.002]
[1729454855313,0.074992,68510.0,68509.0,0.17424176]
[1729454856118,0.074992,68510.0,68509.0,0.002]
[1729454856325,0.074992,68510.0,68509.0,0.17428914]
[1729454856520,0.074992,68510.0,68509.0,0.002]
[1729454857122,0.074992,68510.0,68509.0,0.07492806]
[1729454857316,0.074992,68510.0,68509.0,0.17430437]
[1729454858222,0.074992,68510.0,68509.0,0.10138885]
[1729454858610,0.074992,68510.0,68509.0,0.17433175]
[1729454858928,0.074992,68510.0,68509.0,0.0749429]
[1729454859222,0.074992,68510.0,68509.0,0.17431166]
[1729454859419,0.074992,68510.0,68509.0,0.10136852]
[1729454861730,0.433785,68518.0,68515.0,0.072987]
[1729454861731,0.3608,68518.0,68515.0,0.072987]
[1729454861915,0.3608,68518.0,68516.0,0.17223234]
[1729454862115,0.3608,68518.0,68509.0,0.002]
[1729454862116,0.433784,68518.0,68517.0,0.172257]
[1729454863214,0.072984,68518.0,68517.0,0.072985]
[1729454863819,0.073984,68518.0,68517.0,0.072985]
[1729454864219,0.074984,68518.0,68517.0,0.073985]
[1729454865025,0.073984,68518.0,68517.0,0.073985]
[1729454865228,0.002,68518.0,68517.0,0.076985]
[1729454868031,0.002,68518.0,68517.0,0.10324367]
[1729454871233,0.00218987,68524.0,68523.0,0.072979]
[1729454872536,0.00318987,68524.0,68523.0,0.073979]
[1729454873031,0.00418987,68524.0,68523.0,0.076979]
[1729454873630,0.00418987,68524.0,68523.0,0.12070047]
[1729454873829,0.00418987,68524.0,68523.0,0.076979]
[1729454874238,0.00418987,68524.0,68523.0,0.12070039]
[1729454875040,0.07716787,68524.0,68523.0,0.12070039]
[1729454875434,0.07716787,68524.0,68523.0,0.076979]
[1729454875756,0.07716787,68524.0,68523.0,0.12070039]
[1729454876442,0.07716787,68524.0,68523.0,0.076979]
[1729454878244,0.12196662,68524.0,68523.0,0.076979]
[1729454878541,0.20308602,68524.0,68523.0,0.076979]
[1729454881846,0.13010802,68524.0,68523.0,0.076979]
[1729454882436,0.08530927,68524.0,68523.0,0.076979]
[1729454883547,0.15828727,68524.0,68523.0,0.076979]
[1729454885346,0.07716787,68524.0,68523.0,0.076979]
[1729454885747,0.00418987,68524.0,68523.0,0.076979]
[1729454885940,0.3918,68531.0,68530.0,0.072971]
[1729454885941,0.031,68531.0,68530.0,0.072971]
[1729454886148,0.10397,68531.0,68530.0,0.072971]
[1729454889145,0.07297,68531.0,68530.0,0.072971]
[1729454892546,0.0644,68535.0,68528.0,0.04372381]
[1729454892547,0.072972,68529.0,68528.0,0.04372381]
[1729454892749,0.3608,68532.0,68525.0,0.13428381]
[1729454892949,0.072975,68526.0,68525.0,0.13428381]
[1729454893251,0.0307,68528.0,68524.0,0.11635174]
[1729454893454,0.072977,68525.0,68524.0,0.18932974]
[1729454894447,0.072977,68525.0,68524.0,0.19132974]
[1729454894648,0.073977,68525.0,68524.0,0.19532974]
[1729454894849,0.073977,68525.0,68524.0,0.19332974]
[1729454895049,0.002,68525.0,68524.0,0.19632974]
[1729454898247,0.002,68525.0,68524.0,0.10576974]
[1729454898440,0.002,68525.0,68524.0,0.19632974]
[1729454900344,0.03858949,68525.0,68524.0,0.19632974]
[1729454901651,0.03858949,68525.0,68524.0,0.20089346]
[1729454902143,0.03858949,68525.0,68524.0,0.20089348]
[1729454903142,0.072968,68534.0,68524.0,0.20089348]
[1729454903343,0.072968,68534.0,68533.0,0.072968]
[1729454903956,0.0305,68537.0,68531.0,0.3608]
[1729454903957,0.103465,68537.0,68536.0,0.072965]
[1729454904142,0.0305,68537.0,68536.0,0.072965]
[1729454904342,0.0634,68546.0,68536.0,0.072965]
[1729454904343,0.11573817,68546.0,68536.0,0.072965]
[1729454904543,0.072957,68544.0,68537.0,0.433764]
[1729454905252,0.08503208,68546.0,68545.0,0.072955]
[1729454905443,0.0327,68546.0,68545.0,0.04267956]
[1729454905847,0.3109,68547.0,68542.0,0.09056]
[1729454906052,0.031,68559.0,68558.0,0.072941]
[1729454906249,0.031,68559.0,68558.0,0.433741]
[1729454909143,0.10394,68559.0,68558.0,0.3608]
[1729454909960,0.031,68559.0,68555.0,0.09052]
[1729454910255,0.031,68559.0,68552.0,0.072948]
[1729454911152,0.072947,68554.0,68552.0,0.072948]
[1729454912061,0.072947,68554.0,68553.0,0.072947]
[1729454912855,0.031,68559.0,68553.0,0.072947]
[1729454913060,0.031,68559.0,68549.0,0.09052]
[1729454913281,0.031,68559.0,68555.0,0.072945]
[1729454913282,0.072944,68556.0,68555.0,0.072945]
[1729454915356,0.072944,68556.0,68555.0,0.04228923]
[1729454915357,0.15404037,68556.0,68555.0,0.04228923]
[1729454917760,0.08109637,68556.0,68555.0,0.04228923]
[1729454917958,0.08109637,68556.0,68555.0,0.072945]
[1729454923363,0.072941,68558.0,68557.0,0.072942]
[1729454930455,0.15369722,68558.0,68557.0,0.072942]
[1729454933269,0.15369722,68558.0,68557.0,0.04256235]
[1729454936970,0.15369722,68558.0,68557.0,0.02499485]
[1729454937172,0.15369722,68558.0,68550.0,0.09072]
[1729454937370,0.08075622,68557.0,68556.0,0.072944]
[1729454938363,0.072941,68558.0,68550.0,0.09072]
[1729454938568,0.072941,68558.0,68557.0,0.072942]
[1729454943381,0.031,68559.0,68558.0,0.072941]
[1729454943682,0.10394,68559.0,68558.0,0.072941]
[1729454946082,0.10394,68559.0,68558.0,0.09856652]
[1729454947184,0.10394,68559.0,68558.0,0.072941]
[1729454947881,0.13966395,68559.0,68558.0,0.072941]
[1729454948086,0.10394,68559.0,68558.0,0.072941]
[1729454948690,0.13966393,68559.0,68558.0,0.072941]
[1729454948987,0.13966377,68559.0,68558.0,0.072941]
[1729454949184,0.10394,68559.0,68558.0,0.072941]
[1729454949990,0.13077319,68559.0,68558.0,0.072941]
[1729454950190,0.10394,68559.0,68558.0,0.072941]
[1729454952584,0.12970901,68559.0,68558.0,0.072941]
[1729454953479,0.18959193,68559.0,68553.0,0.18398311]
[1729454953679,0.20576492,68558.0,68557.0,0.072942]
[1729454954394,0.3952968,68558.0,68557.0,0.072942]
[1729454954889,0.3429749,68558.0,68557.0,0.072942]
[1729454955290,0.15344302,68558.0,68557.0,0.072942]
[1729454960387,0.072942,68558.0,68557.0,0.072942]
[1729454963082,0.031,68559.0,68553.0,0.02569444]
[1729454963397,0.031,68559.0,68558.0,0.072941]
[1729454964487,0.10394,68559.0,68558.0,0.072941]
[1729454968397,0.23676055,68559.0,68550.0,0.07287979]
[1729454968594,0.08049958,68558.0,68550.0,0.07287979]
[1729454968795,0.08049958,68557.0,68556.0,0.072944]